fUST/lending_fUST_20250325
["ID","MTS","AMOUNT","RATE_DAILY","PERIOD"]
[356645120,1742896240322,-1128.863994,0.00013698,2]
[356645121,1742896240331,-500.0,0.00013698,2]
[356645122,1742896240340,-500.0,0.00013698,2]
[356645123,1742896240350,-1128.863994,0.00013698,2]
[356645124,1742896240359,-1128.863994,0.00013698,2]
[356645125,1742896240368,-1128.863994,0.00013698,2]
[356645126,1742896240378,-2163.37,0.00013698,2]
[356645127,1742896240387,-1128.86399232,0.00013698,2]
[356645128,1742896240397,-500.0,0.00013698,2]
[356645129,1742896240406,-500.0,0.00013698,2]
[356645130,1742896240416,-4449.32,0.00013698,2]
[356645131,1742896240426,-549.94,0.00013698,2]
[356645132,1742896240435,-1231.32,0.00013698,2]
[356645133,1742896240445,-882.0,0.00013698,2]
[356645134,1742896240455,-500.0,0.00013698,2]
[356645135,1742896240464,-1434.21,0.00013698,2]
[356645136,1742896240474,-1090.52,0.00013698,2]
[356645137,1742896240483,-500.0,0.00013698,2]
[356645138,1742896240492,-2195.3,0.00013698,2]
[356645139,1742896240502,-500.0,0.00013698,2]
[356645140,1742896240511,-500.0,0.00013698,2]
[356645141,1742896240521,-1572.54,0.00013698,2]
[356645142,1742896240530,-500.0,0.00013698,2]
[356645143,1742896240539,-500.0,0.00013698,2]
[356645144,1742896240549,-500.0,0.00013698,2]
[356645145,1742896240558,-500.0,0.00013698,2]
[356645146,1742896240568,-500.0,0.00013698,2]
[356645147,1742896240577,-3191.98,0.00013698,2]
[356645148,1742896240587,-523.93,0.00013698,2]
[356645149,1742896240597,-500.0,0.00013698,2]
[356645150,1742896240607,-500.0,0.00013698,2]
[356645151,1742896240616,-669.47,0.00013698,2]
[356645152,1742896240626,-500.0,0.00013698,2]
[356645153,1742896240635,-500.0,0.00013698,2]
[356645154,1742896240644,-500.0,0.00013698,2]
[356645155,1742896240654,-500.0,0.00013698,2]
[356645156,1742896240664,-500.0,0.00013698,2]
[356645157,1742896240677,-8546.36,0.00013698,2]
[356645158,1742896240687,-524.22,0.00013698,2]
[356645159,1742896240696,-500.0,0.00013698,2]
[356645160,1742896240706,-500.0,0.00013698,2]
[356645161,1742896240715,-537.87,0.00013698,2]
[356645162,1742896240725,-500.0,0.00013698,2]
[356645163,1742896240734,-500.0,0.00013698,2]
[356645164,1742896240744,-500.0,0.00013698,2]
[356645165,1742896240753,-712.93,0.00013698,2]
[356645166,1742896240762,-994.41,0.00013698,2]
[356645167,1742896240771,-14717.76,0.00013698,2]
[356645168,1742896240781,-1380.16,0.00013698,2]
[356645169,1742896240791,-500.0,0.00013698,2]
[356645170,1742896240800,-500.0,0.00013698,2]
[356645171,1742896240810,-3336.72,0.00013698,2]
[356645172,1742896240819,-500.0,0.00013698,2]
[356645173,1742896240828,-500.0,0.00013698,2]
[356645174,1742896240838,-103155.01,0.00013698,2]
[356645175,1742896240847,-4784.46,0.00013698,2]
[356645176,1742896240857,-500.0,0.00013698,2]
[356645177,1742896240866,-500.0,0.00013698,2]
[356645178,1742896240876,-1084.64,0.00013698,2]
[356645179,1742896240886,-500.0,0.00013698,2]
[356645180,1742896240896,-12940.33,0.00013698,2]
[356645181,1742896240905,-2497.28,0.00013698,2]
[356645182,1742896240915,-500.0,0.00013698,2]
[356645183,1742896240924,-520.92169219,0.00013698,2]
[356645184,1742896240934,-500.0,0.00013698,2]
[356645185,1742896240943,-2918.09,0.00013698,2]
[356645186,1742896240953,-1223.72,0.00013698,2]
[356645187,1742896240963,-500.0,0.00013698,2]
[356645188,1742896240973,-1461.61,0.00013698,2]
[356645189,1742896240983,-1441.65,0.00013698,2]
[356645190,1742896240993,-500.0,0.00013698,2]
[356645191,1742896241006,-500.0,0.00013698,2]
[356645192,1742896241016,-500.0,0.00013698,2]
[356645193,1742896241025,-1479.51,0.00013698,2]
[356645194,1742896241035,-500.0,0.00013698,2]
[356645195,1742896241046,-500.0,0.00013698,2]
[356645196,1742896241055,-500.0,0.00013698,2]
[356645197,1742896241065,-500.0,0.00013698,2]
[356645198,1742896241075,-1137.43,0.00013698,2]
[356645199,1742896241086,-1308.47,0.00013698,2]
[356645200,1742896241095,-674.85,0.00013698,2]
[356645201,1742896241104,-500.0,0.00013698,2]
[356645202,1742896241113,-500.0,0.00013698,2]
[356645203,1742896241279,-1084.34,0.00013698,2]
[356645204,1742896241290,-500.0,0.00013698,2]
[356645205,1742896241299,-500.0,0.00013698,2]
[356645206,1742896241309,-500.0,0.00013698,2]
[356645207,1742896241319,-2292.91,0.00013698,2]
[356645208,1742896241328,-500.0,0.00013698,2]
[356645209,1742896241338,-500.0,0.00013698,2]
[356645210,1742896241347,-500.0,0.00013698,2]
[356645211,1742896241356,-500.0,0.00013698,2]
[356645212,1742896241365,-500.0,0.00013698,2]
[356645213,1742896241375,-2216.23,0.00013698,2]
[356645214,1742896241385,-500.0,0.00013698,2]
[356645215,1742896241395,-500.0,0.00013698,2]
[356645216,1742896241404,-503.68,0.00013698,2]
[356645217,1742896241413,-1086.73,0.00013698,2]
[356645218,1742896241423,-500.0,0.00013698,2]
[356645219,1742896241432,-520.66049258,0.00013698,2]
[356645220,1742896241442,-6790.74,0.00013698,2]
[356645221,1742896241451,-500.0,0.00013698,2]
[356645222,1742896241461,-6614.84,0.00013698,2]
[356645223,1742896241470,-1221.16,0.00013698,2]
[356645224,1742896241479,-500.0,0.00013698,2]
[356645225,1742896241489,-500.0,0.00013698,2]
[356645226,1742896241498,-500.0,0.00013698,2]
[356645227,1742896241507,-6349.51,0.00013698,2]
[356645228,1742896241516,-501.20532211,0.00013698,2]
[356645229,1742896241525,-500.0,0.00013698,2]
[356645230,1742896241534,-500.0,0.00013698,2]
[356645231,1742896241544,-1191.73,0.00013698,2]
[356645232,1742896241553,-500.0,0.00013698,2]
[356645233,1742896241562,-500.0,0.00013698,2]
[356645234,1742896241571,-221.8422575,0.00013698,2]
[356645235,1742896241581,-500.0,0.00013698,2]
[356645236,1742896241590,-756.29,0.00013698,2]
[356645237,1742896241599,-500.0,0.00013698,2]
[356645238,1742896241608,-536.41,0.00013698,2]
[356645239,1742896241616,-500.0,0.00013698,2]
[356645240,1742896241626,-500.0,0.00013698,2]
[356645241,1742896241634,-500.0,0.00013698,2]
[356645242,1742896241643,-500.0,0.00013698,2]
[356645243,1742896241652,-500.0,0.00013698,2]
[356645244,1742896241661,-613.09,0.00013698,2]
[356645245,1742896241672,-500.0,0.00013698,2]
[356645246,1742896241681,-500.0,0.00013698,2]
[356645247,1742896241691,-500.0,0.00013699,2]
[356645248,1742896241700,-500.0,0.00013699,2]
[356645249,1742896241709,-500.0,0.00013699,2]
[356645250,1742896241718,-500.0,0.00013699,2]
[356645251,1742896241728,-500.0,0.00013699,2]
[356645252,1742896241737,-500.0,0.00013699,2]
[356645253,1742896241746,-500.0,0.00013699,2]
[356645254,1742896241755,-500.0,0.00013699,2]
[356645255,1742896241764,-266.0,0.00013699,2]
[356645256,1742896241774,-500.0,0.00013699,2]
[356645257,1742896241784,-500.0,0.00013699,2]
[356645258,1742896241793,-500.0,0.00013699,2]
[356645259,1742896241803,-500.0,0.00013699,2]
[356645260,1742896241812,-500.0,0.00013699,2]
[356645261,1742896241821,-500.0,0.00013699,2]
[356645262,1742896241831,-500.0,0.00013699,2]
[356645263,1742896241840,-500.0,0.00013699,2]
[356645264,1742896241850,-500.0,0.00013699,2]
[356645265,1742896241860,-500.0,0.00013699,2]
[356645266,1742896241869,-500.0,0.00013699,2]
[356645267,1742896241879,-500.0,0.00013699,2]
[356645268,1742896241888,-558.02650406,0.00013699,2]
[356645269,1742896241898,-179.80221756,0.00013699,2]
[356645270,1742896241908,-724.400635,0.00013699,2]
[356645271,1742896241918,-500.0,0.00013699,2]
[356645272,1742896241928,-301.90693374,0.00013699,2]
[356645273,1742896241937,-500.0,0.00013699,2]
[356645274,1742896241947,-500.0,0.00013699,2]
[356645275,1742896241956,-500.0,0.00013699,2]
[356645276,1742896241965,-500.0,0.00013699,2]
[356645277,1742896241975,-500.0,0.00013699,2]
[356645278,1742896241984,-500.0,0.00013699,2]
[356645279,1742896241993,-267.4476996,0.00013699,2]
[356645280,1742896242005,-500.0,0.00013699,2]
[356645281,1742896242014,-500.0,0.00013699,2]
[356645282,1742896242024,-500.0,0.00013699,2]
[356645283,1742896242033,-500.0,0.00013699,2]
[356645284,1742896242043,-502.43544777,0.00013699,2]
[356645285,1742896242052,-501.06093066,0.00013699,2]
[356645286,1742896242061,-500.0,0.00013699,2]
[356645287,1742896242070,-500.0,0.00013699,2]
[356645288,1742896242079,-500.0,0.00013699,2]
[356645289,1742896242088,-500.0,0.00013699,2]
[356645290,1742896242098,-500.0,0.00013699,2]
[356645291,1742896242107,-500.0,0.00013699,2]
[356645292,1742896242116,-500.0,0.00013699,2]
[356645293,1742896242126,-500.40544973,0.00013699,2]
[356645294,1742896242136,-500.0,0.00013699,2]
[356645295,1742896242146,-500.0,0.00013699,2]
[356645296,1742896242155,-422.02472019,0.00013699,2]
[356645297,1742896242165,-500.0,0.00013699,2]
[356645298,1742896242174,-500.0,0.00013699,2]
[356645299,1742896242183,-500.0,0.00013699,2]
[356645300,1742896242193,-500.0,0.00013699,2]
[356645301,1742896242203,-500.0,0.00013699,2]
[356645302,1742896242212,-500.0,0.00013699,2]
[356645303,1742896242221,-500.0,0.00013699,2]
[356645304,1742896242231,-500.0,0.00013699,2]
[356645305,1742896242240,-500.0,0.00013699,2]
[356645306,1742896242250,-500.0,0.00013699,2]
[356645307,1742896242259,-500.0,0.00013699,2]
[356645308,1742896242269,-500.0,0.00013699,2]
[356645309,1742896242278,-500.0,0.00013699,2]
[356645310,1742896242288,-500.0,0.00013699,2]
[356645311,1742896242297,-500.0,0.00013699,2]
[356645312,1742896242307,-500.0,0.00013699,2]
[356645313,1742896242316,-500.0,0.00013699,2]
[356645314,1742896242326,-500.0,0.00013699,2]
[356645315,1742896242336,-500.0,0.00013699,2]
[356645316,1742896242345,-500.0,0.00013699,2]
[356645318,1742896242355,-500.0,0.00013699,2]
[356645320,1742896242364,-500.0,0.00013699,2]
[356645323,1742896242374,-500.0,0.00013699,2]
[356645326,1742896242384,-500.0,0.00013699,2]
[356645327,1742896242394,-500.0,0.00013699,2]
[356645328,1742896242404,-500.0,0.00013699,2]
[356645329,1742896242414,-500.0,0.00013699,2]
[356645330,1742896242423,-500.0,0.00013699,2]
[356645331,1742896242433,-500.0,0.00013699,2]
[356645332,1742896242443,-500.0,0.00013699,2]
[356645333,1742896242453,-500.0,0.00013699,2]
[356645335,1742896242463,-500.0,0.00013699,2]
[356645337,1742896242472,-500.0,0.00013699,2]
[356645338,1742896242481,-500.0,0.00013699,2]
[356645340,1742896242491,-500.0,0.00013699,2]
[356645342,1742896242501,-500.0,0.00013699,2]
[356645343,1742896242510,-500.0,0.00013699,2]
[356645344,1742896242520,-500.0,0.00013699,2]
[356645345,1742896242529,-500.0,0.00013699,2]
[356645346,1742896242538,-829.87762704,0.00013699,2]
[356645347,1742896242548,-829.87762704,0.00013699,2]
[356645348,1742896242558,-829.87762704,0.00013699,2]
[356645349,1742896242568,-829.87762704,0.00013699,2]
[356645350,1742896242578,-829.87762704,0.00013699,2]
[356645351,1742896242587,-829.87762704,0.00013699,2]
[356645352,1742896242596,-829.87762704,0.00013699,2]
[356645353,1742896242606,-829.87762704,0.00013699,2]
[356645354,1742896242615,-829.87762704,0.00013699,2]
[356645355,1742896242625,-829.87762704,0.00013699,2]
[356645356,1742896242635,-829.87762704,0.00013699,2]
[356645357,1742896242644,-829.87762704,0.00013699,2]
[356645358,1742896242654,-829.87762704,0.00013699,2]
[356645359,1742896242663,-829.87762704,0.00013699,2]
[356645360,1742896242674,-829.87762704,0.00013699,2]
[356645361,1742896242683,-829.87762704,0.00013699,2]
[356645362,1742896242693,-829.87762704,0.00013699,2]
[356645363,1742896242703,-829.87762704,0.00013699,2]
[356645364,1742896242712,-829.87762704,0.00013699,2]
[356645365,1742896242722,-829.87762704,0.00013699,2]
[356645366,1742896242731,-829.87762704,0.00013699,2]
[356645367,1742896242740,-829.87762704,0.00013699,2]
[356645368,1742896242749,-829.87762704,0.00013699,2]
[356645369,1742896242760,-829.87762704,0.00013699,2]
[356645370,1742896242770,-829.87762704,0.00013699,2]
[356645371,1742896242779,-829.87762704,0.00013699,2]
[356645372,1742896242789,-829.87762704,0.00013699,2]
[356645373,1742896242799,-829.87762704,0.00013699,2]
[356645374,1742896242809,-829.87762704,0.00013699,2]
[356645375,1742896242818,-829.87762704,0.00013699,2]
[356645376,1742896242828,-829.87762704,0.00013699,2]
[356645377,1742896242838,-829.87762704,0.00013699,2]
[356645378,1742896242848,-829.87762704,0.00013699,2]
[356645379,1742896242858,-829.87762704,0.00013699,2]
[356645380,1742896242868,-829.87762704,0.00013699,2]
[356645381,1742896242877,-829.87762704,0.00013699,2]
[356645382,1742896242887,-829.87762704,0.00013699,2]
[356645383,1742896242897,-810.72660487,0.00013699,2]
[356645385,1742896242906,-810.72660487,0.00013699,2]
[356645387,1742896242915,-810.72660487,0.00013699,2]
[356645389,1742896242925,-810.72660487,0.00013699,2]
[356645390,1742896242935,-810.72660487,0.00013699,2]
[356645391,1742896242945,-810.72660487,0.00013699,2]
[356645392,1742896242954,-810.72660487,0.00013699,2]
[356645393,1742896242963,-810.72660487,0.00013699,2]
[356645395,1742896242972,-810.72660487,0.00013699,2]
[356645396,1742896242982,-810.72660487,0.00013699,2]
[356645398,1742896242991,-810.72660487,0.00013699,2]
[356645399,1742896243005,-810.72660487,0.00013699,2]
[356645400,1742896243016,-810.72660481,0.00013699,2]
[356645401,1742896243026,-500.0,0.00013699,2]
[356645402,1742896243035,-306.93,0.000137,2]
[356645403,1742896243045,-500.0,0.00013701,2]
[356645404,1742896243055,-302.0,0.00013779,2]
[356645405,1742896243064,-2200.0,0.00013825,2]
[356645406,1742896243075,-150.15,0.00013835,2]
[356645407,1742896243084,-500.0,0.00013835,2]
[356645408,1742896243094,-500.0,0.00013836,2]
[356645409,1742896243103,-2515.2703013,0.00013893,2]
[356645410,1742896243112,-14469.50947034,0.000139,2]
[356645411,1742896243121,-65435.48511403,0.000139,2]
[356645414,1742896243299,-31237.4775252,0.000139,2]
[356645415,1742896243309,-420.0,0.00013901,2]
[356645416,1742896243319,-7176.88895641,0.00013954,2]
[356645417,1742896243328,-150.15,0.00013972,2]
[356645418,1742896243338,-519.34798346,0.00013972,2]
[356645419,1742896243348,-647.97,0.00013972,2]
[356645420,1742896243357,-151.0,0.00013972,2]
[356645421,1742896243366,-500.0,0.00013972,2]
[356645422,1742896243376,-500.0,0.00013972,2]
[356645423,1742896243385,-500.0,0.00013972,2]
[356645424,1742896243394,-500.0,0.00013972,2]
[356645425,1742896243403,-500.0,0.00013972,2]
[356645426,1742896243413,-500.0,0.00013972,2]
[356645427,1742896243422,-500.0,0.00013972,2]
[356645428,1742896243431,-500.0,0.00013972,2]
[356645429,1742896243440,-500.0,0.00013972,2]
[356645430,1742896243450,-500.0,0.00013972,2]
[356645431,1742896243459,-500.0,0.00013972,2]
[356645432,1742896243468,-500.0,0.00013972,2]
[356645433,1742896243599,-500.0,0.00013972,2]
[356645434,1742896243608,-535.74,0.00013972,2]
[356645435,1742896243618,-500.0,0.00013972,2]
[356645436,1742896243627,-500.0,0.00013972,2]
[356645437,1742896243636,-500.0,0.00013972,2]
[356645438,1742896243646,-500.0,0.00013972,2]
[356645439,1742896243655,-500.0,0.00013972,2]
[356645440,1742896243665,-500.0,0.00013972,2]
[356645441,1742896243675,-610.66,0.00013972,2]
[356645442,1742896243684,-375.67124633,0.00013972,2]
[356645443,1742896243693,-500.0,0.00013972,2]
[356645444,1742896243702,-500.0,0.00013972,2]
[356645445,1742896243711,-500.0,0.00013972,2]
[356645446,1742896243721,-1161.62,0.00013972,2]
[356645447,1742896243730,-633.16421934,0.00013972,2]
[356645448,1742896243739,-341.98,0.00013972,2]
[356645449,1742896243748,-500.0,0.00013972,2]
[356645450,1742896243757,-500.0,0.00013972,2]
[356645451,1742896243766,-613.86,0.00013972,2]
[356645452,1742896243776,-500.0,0.00013972,2]
[356645453,1742896243786,-500.0,0.00013972,2]
[356645454,1742896243795,-500.0,0.00013972,2]
[356645455,1742896243804,-500.0,0.00013972,2]
[356645456,1742896243813,-653.25,0.00013972,2]
[356645457,1742896243823,-500.0,0.00013972,2]
[356645458,1742896243832,-500.0,0.00013972,2]
[356645459,1742896243841,-500.0,0.00013972,2]
[356645460,1742896243850,-500.0,0.00013972,2]
[356645461,1742896243859,-614.65,0.00013972,2]
[356645462,1742896243869,-564.74,0.00013972,2]
[356645463,1742896243878,-500.0,0.00013972,2]
[356645464,1742896243887,-500.0,0.00013972,2]
[356645465,1742896243897,-205.68452796,0.00013972,2]
[356645466,1742896243906,-500.0,0.00013972,2]
[356645467,1742896243915,-500.0,0.00013972,2]
[356645468,1742896243925,-714.4,0.00013972,2]
[356645469,1742896243935,-500.0,0.00013972,2]
[356645470,1742896243944,-500.0,0.00013972,2]
[356645471,1742896243954,-500.0,0.00013972,2]
[356645472,1742896243963,-500.0,0.00013972,2]
[356645473,1742896243973,-904.13,0.00013972,2]
[356645474,1742896243983,-500.0,0.00013972,2]
[356645475,1742896243992,-500.0,0.00013972,2]
[356645476,1742896244003,-500.0,0.00013972,2]
[356645477,1742896244012,-500.0,0.00013972,2]
[356645478,1742896244021,-500.0,0.00013972,2]
[356645479,1742896244031,-500.0,0.00013972,2]
[356645480,1742896244040,-3064.75,0.00013972,2]
[356645481,1742896244049,-500.0,0.00013972,2]
[356645482,1742896244059,-500.0,0.00013972,2]
[356645483,1742896244068,-500.0,0.00013972,2]
[356645484,1742896244077,-500.0,0.00013972,2]
[356645485,1742896244086,-500.0,0.00013972,2]
[356645486,1742896244095,-500.0,0.00013972,2]
[356645487,1742896244104,-500.0,0.00013972,2]
[356645488,1742896244114,-500.0,0.00013972,2]
[356645489,1742896244123,-500.0,0.00013972,2]
[356645490,1742896244133,-500.0,0.00013972,2]
[356645491,1742896244142,-500.0,0.00013972,2]
[356645492,1742896244152,-500.0,0.00013972,2]
[356645493,1742896244160,-500.0,0.00013972,2]
[356645494,1742896244170,-495.0,0.00013972,2]
[356645495,1742896244179,-500.0,0.00013972,2]
[356645496,1742896244188,-500.0,0.00013972,2]
[356645497,1742896244197,-500.0,0.00013972,2]
[356645498,1742896244207,-500.0,0.00013972,2]
[356645499,1742896244217,-528.91,0.00013972,2]
[356645500,1742896244226,-926.18,0.00013972,2]
[356645501,1742896244236,-500.0,0.00013972,2]
[356645502,1742896244246,-500.0,0.00013972,2]
[356645503,1742896244255,-500.0,0.00013972,2]
[356645504,1742896244264,-500.0,0.00013972,2]
[356645505,1742896244274,-542.52,0.00013972,2]
[356645506,1742896244283,-500.0,0.00013972,2]
[356645507,1742896244292,-296.73652376,0.00013972,2]
[356645508,1742896244302,-500.0,0.00013972,2]
[356645509,1742896244311,-500.0,0.00013972,2]
[356645510,1742896244320,-500.0,0.00013972,2]
[356645511,1742896244330,-500.0,0.00013972,2]
[356645512,1742896244339,-709.05,0.00013972,2]
[356645513,1742896244349,-505.43110878,0.00013972,2]
[356645514,1742896244358,-500.0,0.00013972,2]
[356645515,1742896244367,-195.5671797,0.00013972,2]
[356645516,1742896244377,-500.0,0.00013972,2]
[356645517,1742896244386,-631.81,0.00013972,2]
[356645518,1742896244395,-500.0,0.00013972,2]
[356645519,1742896244405,-500.0,0.00013972,2]
[356645520,1742896244414,-500.0,0.00013972,2]
[356645521,1742896244423,-500.0,0.00013972,2]
[356645522,1742896244433,-532.84,0.00013972,2]
[356645523,1742896244442,-836.53,0.00013972,2]
[356645524,1742896244451,-158.82,0.00013972,2]
[356645525,1742896244460,-568.98,0.00013972,2]
[356645526,1742896244470,-853.52,0.00013972,2]
[356645527,1742896244479,-500.0,0.00013972,2]
[356645528,1742896244488,-500.0,0.00013972,2]
[356645529,1742896244497,-500.0,0.00013972,2]
[356645530,1742896244506,-560.16,0.00013972,2]
[356645531,1742896244516,-184.57270172,0.00013972,2]
[356645532,1742896244525,-500.0,0.00013972,2]
[356645533,1742896244535,-1913.26,0.00013972,2]
[356645534,1742896244544,-500.0,0.00013972,2]
[356645535,1742896244553,-500.0,0.00013972,2]
[356645536,1742896244562,-500.0,0.00013972,2]
[356645537,1742896244572,-500.0,0.00013972,2]
[356645538,1742896244580,-500.0,0.00013972,2]
[356645539,1742896244589,-3519.53,0.00013972,2]
[356645540,1742896244599,-500.0,0.00013972,2]
[356645541,1742896244608,-500.0,0.00013972,2]
[356645542,1742896244618,-500.0,0.00013972,2]
[356645543,1742896244627,-204.91,0.00013972,2]
[356645544,1742896244636,-500.0,0.00013972,2]
[356645545,1742896244645,-1089.0494523,0.00013972,2]
[356645546,1742896244660,-751.1205477,0.00013972,2]
[356645547,1742896244670,-546.35,0.00013972,2]
[356645548,1742896244680,-500.0,0.00013972,2]
[356645549,1742896244689,-608.89,0.00013972,2]
[356645550,1742896244698,-500.0,0.00013972,2]
[356645551,1742896244707,-500.0,0.00013972,2]
[356645552,1742896244717,-500.0,0.00013972,2]
[356645553,1742896244726,-2163.37,0.00013972,2]
[356645554,1742896244735,-500.0,0.00013972,2]
[356645555,1742896244744,-4449.32,0.00013972,2]
[356645556,1742896244753,-549.94,0.00013972,2]
[356645557,1742896244762,-1231.32,0.00013972,2]
[356645558,1742896244772,-882.0,0.00013972,2]
[356645559,1742896244781,-500.0,0.00013972,2]
[356645560,1742896244790,-1434.21,0.00013972,2]
[356645561,1742896244800,-1090.52,0.00013972,2]
[356645562,1742896244809,-2195.3,0.00013972,2]
[356645563,1742896244819,-500.0,0.00013972,2]
[356645564,1742896244828,-500.0,0.00013972,2]
[356645565,1742896244837,-1572.54,0.00013972,2]
[356645566,1742896244847,-500.0,0.00013972,2]
[356645567,1742896244856,-500.0,0.00013972,2]
[356645568,1742896244866,-500.0,0.00013972,2]
[356645569,1742896244875,-178.38,0.00013972,2]
[356645570,1742896244885,-3191.98,0.00013972,2]
[356645571,1742896244894,-523.93,0.00013972,2]
[356645572,1742896244904,-500.0,0.00013972,2]
[356645573,1742896244913,-430.64296938,0.00013972,2]
[356645574,1742896244923,-669.47,0.00013972,2]
[356645575,1742896244932,-487.0,0.00013972,2]
[356645576,1742896244942,-500.0,0.00013972,2]
[356645577,1742896244951,-500.0,0.00013972,2]
[356645578,1742896244960,-500.0,0.00013972,2]
[356645579,1742896244969,-8546.36,0.00013972,2]
[356645580,1742896244978,-524.22,0.00013972,2]
[356645581,1742896244988,-500.0,0.00013972,2]
[356645582,1742896244998,-500.0,0.00013972,2]
[356645583,1742896245011,-537.87,0.00013972,2]
[356645584,1742896245021,-500.0,0.00013972,2]
[356645585,1742896245030,-500.0,0.00013972,2]
[356645586,1742896245039,-500.0,0.00013972,2]
[356645587,1742896245050,-712.93,0.00013972,2]
[356645588,1742896245059,-290.49818637,0.00013972,2]
[356645589,1742896245272,773.0,0.00010959,2]
[356645614,1742896249683,515.33,0.00010959,2]
[356645615,1742896260156,429.44,0.00010959,2]
[356645616,1742896270693,357.87,0.00010959,2]
[356645617,1742896281202,298.22,0.00010959,2]
[356645618,1742896291703,248.52,0.00010959,2]
[356645619,1742896302410,207.1,0.00010959,2]
[356645620,1742896313129,172.58,0.00010959,2]
[356645622,1742896324660,862.94,0.00010959,2]
[356645624,1742896365829,152.9,0.00010959,2]
[356645626,1742896376322,764.51,0.00010959,2]
[356645632,1742896479485,403.28,0.00010959,2]
[356645641,1742896810657,10000.0,0.00011688,2]
[356645665,1742897230814,219.3207458,0.00010959,2]
[356645935,1742897403957,491.0,0.00012,30]
[356645967,1742897432192,-150.00000001,0.00012473,2]
[356645969,1742897432201,-500.0,0.00012572,2]
[356645971,1742897432211,-500.0,0.00012572,2]
[356645973,1742897432229,-603.32210251,0.00012572,2]
[356645974,1742897432239,-500.0,0.00012572,2]
[356645975,1742897432248,-500.0,0.00012572,2]
[356645976,1742897432258,-300.0,0.00012572,2]
[356645977,1742897432267,-15985.17,0.00012573,2]
[356645978,1742897432277,-290.25365424,0.00012573,2]
[356645979,1742897432286,-500.0,0.00012573,2]
[356645980,1742897432295,-308.97028914,0.00012573,2]
[356645981,1742897432305,-500.0,0.00012573,2]
[356645982,1742897432314,-563.96530403,0.00012573,2]
[356645983,1742897432496,-500.0,0.00012573,2]
[356645984,1742897432506,-197.1239696,0.00012573,2]
[356645985,1742897432515,-504.28806655,0.00012573,2]
[356645986,1742897432525,-502.04496052,0.00012573,2]
[356645987,1742897432534,-500.0,0.00012573,2]
[356645988,1742897432544,-500.0,0.00012573,2]
[356645989,1742897432553,-500.0,0.00012573,2]
[356645990,1742897432563,-504.93805266,0.00012573,2]
[356645991,1742897432571,-151.68372563,0.00012573,2]
[356645992,1742897432581,-502.52118937,0.00012573,2]
[356645993,1742897432590,-500.0,0.00012573,2]
[356645994,1742897432599,-500.0,0.00012573,2]
[356645995,1742897432608,-500.0,0.00012573,2]
[356645996,1742897432617,-500.0,0.00012573,2]
[356645997,1742897432626,-418.4120332,0.00012573,2]
[356645998,1742897432637,-500.0,0.00012573,2]
[356645999,1742897432646,-500.0,0.00012573,2]
[356646000,1742897432656,-500.0,0.00012573,2]
[356646001,1742897432665,-475.02761296,0.00012573,2]
[356646002,1742897432676,-5000.0,0.00012573,2]